Cogmind - Beta 10 @@@ ROGUE MODE // 2020.09.16 @ 20:55:31 Player: Sukhoy Result: Destroyed by G-34 Mercenary with Small Laser Performance ------------- Evolutions (1) 500 Regions Visited (2) 400 Robots Destroyed (46) 230 Value Destroyed (1024) 1024 Prototype IDs (0) 0 Alien Tech Used (0) 0 Bonus (0) 0 TOTAL SCORE: 2154 Bonus ------- None Cogmind --------- Core Integrity 0/400 Matter 280/300 Energy 85/100 System Corruption 0% Temperature Cool (8) Movement Walking (120) Location -9/Materials Parts ------- > --- POWER (1) -------- (None) > --- PROPULSION (3) --- Aluminum Leg Aluminum Leg > --- UTILITY (3) ------ Medium Storage Unit > --- WEAPON (2) ------- Great Maul > --- INVENTORY (8) ---- Heat Sink Large Matter Pod (150) Particle Cannon Flak Cannon Flak Cannon Grenade Launcher Peak State ------------ > --- POWER ------------ Nuclear Core > --- PROPULSION ------- Airjet Airjet Airjet > --- UTILITY ---------- Medium Storage Unit Hardened Medium Armor Plating Shield Generator > --- WEAPON ----------- Flak Cannon Great Maul > --- INVENTORY -------- Heat Sink Large Matter Pod Hardened Medium Armor Plating Particle Cannon Flak Cannon Grenade Launcher [Rating: 25] Favorites ----------- Power Ion Engine Engine Ion Engine Power Core Nuclear Core Propulsion Aluminum Leg Leg Aluminum Leg Wheel Wheel Hover Unit Airjet Flight Unit Flight Unit Utility Medium Storage Unit Device Heat Sink Storage Medium Storage Unit Processor Targeting Computer Protection Hardened Medium Armor Plating Weapon Medium Laser Energy Gun Medium Laser Energy Cannon Particle Cannon Ballistic Gun Assault Rifle Ballistic Cannon Flak Cannon Launcher Grenade Launcher Impact Weapon Great Maul Special Melee Weapon Datajack Build | -11 -10 -9 ------- Run | Scr Mat Mat Slots Evolved 2 | . . 2 Power . | . . . Propulsion 1 | . . 1 Utility 1 | . . 1 Weapon . | . . . Parts Attached 80 | 8 37 35 Power 8 | 2 4 2 Engine 6 | 2 4 . Core 2 | . . 2 Reactor . | . . . Propulsion 22 | 2 13 7 Treads . | . . . Leg 12 | . 10 2 Wheel 2 | 2 . . Hover 5 | . 1 4 Flight 3 | . 2 1 Utility 14 | 1 8 5 Device 6 | 1 3 2 Storage 3 | . 3 . Processor 1 | . . 1 Hackware . | . . . Protection 4 | . 2 2 Artifact . | . . . Weapon 36 | 3 12 21 Energy Gun 9 | 1 5 3 Energy Cannon 4 | . . 4 Ballistic Gun 7 | 2 4 1 Ballistic Cannon 3 | . . 3 Launcher 7 | . 2 5 Special Weapon . | . . . Impact Weapon 4 | . . 4 Slashing Weapon . | . . . Piercing Weapon . | . . . Special Melee Weapon 2 | . 1 1 Unidentified Prototypes . | . . . Parts Lost 11 | . 3 8 Power 1 | . . 1 Propulsion 5 | . 1 4 Utility 2 | . . 2 Weapon 3 | . 2 1 Highest Loss Streak 2 | . 2 2 Average Slot Usage (%) 84 | . 94 77 Engine 6 | . 12 2 Core 4 | . . 7 Leg 14 | . 24 6 Hover 7 | . . 13 Flight 1 | . 2 . Device 8 | . 13 4 Storage 11 | . 11 11 Protection 6 | . 1 10 Energy Gun 6 | . 10 2 Energy Cannon 2 | . . 4 Ballistic Gun 6 | . 12 . Ballistic Cannon 1 | . . 2 Launcher 2 | . 3 1 Impact Weapon 3 | . . 6 Naked Turns . | . . . Heaviest Build 39 | 10 19 39 Greatest Support 27 | 20 20 27 Greatest Overweight (x) 8 | . 1 8 Average Overweight (x) . | . . 1 Largest Inventory Capacity 8 | 4 8 8 Average Capacity 6 | 4 4 8 Most Carried 8 | 4 6 8 Average Carried 4 | 2 2 5 Final Capacity 8 | 4 8 8 Final Carried 6 | 4 6 6 Class Distribution -------------------- 77% | Mutant 22% | Scavenger-Mutant Dominant Class ---------------- Scavenger-Mutant | -10/Materials Mutant | -9/Materials Resources | -11 -10 -9 ----------- Run | Scr Mat Mat Matter Collected 1444 | 292 528 624 Remotely . | . . . Salvage Created 1107 | 46 424 637 Parts 76 | 4 33 39 Haulers Intercepted 2 | . 1 1 Recyclers Shooed 1 | . . 1 Parts Field Recycled . | . . . Retrieved Matter . | . . . Parts Self-Destructed . | . . . Prevented . | . . . Kills | -11 -10 -9 ------- Run | Scr Mat Mat Combat Hostiles Destroyed 38 | 1 12 25 Melee 5 | . . 5 Guns 10 | 1 7 2 Cannons 2 | . . 2 AOE 16 | . 5 11 Classes Destroyed 7 | 1 3 3 Worker 2 | . . 2 Builder 2 | . . 2 Hauler 2 | . 1 1 Watcher 2 | . 2 . Swarmer 16 | . 3 13 Grunt 21 | 1 9 11 Brawler 1 | . . 1 Best Kill Streak 7 | 1 7 5 Combat Bots Only 6 | 1 6 4 Max Kills in Single Turn 4 | 1 4 3 Gunslinging . | . . . Exploded 3 | . 3 3 Melee 1 | . . 1 Uniques/NPCs Destroyed . | . . . Combat | -11 -10 -9 -------- Run | Scr Mat Mat Damage Taken 2425 | 34 838 1553 Core 585 | 23 160 402 Absorbed by Shields 216 | . . 216 Core Remaining (%) 58 | 90 26 . Volleys Fired 92 | 4 53 35 Largest 2 | 2 2 2 Hottest 136 | 70 85 136 Shots Fired 149 | 8 94 47 Gun 114 | 8 91 15 Cannon 23 | . . 23 Launcher 12 | . 3 9 Special . | . . . Kinetic 97 | 4 75 18 Thermal 40 | 4 16 20 Explosive 12 | . 3 9 Electromagnetic . | . . . Robot Hit Streak 10 | 5 10 8 Robot Miss Streak 7 | 1 4 7 Penetration Max . | . . . Secondary Targets . | . . . Shots Hit Robots 114 | 5 54 55 Core Hits 70 | 2 31 37 Critical Hits 1 | . . 1 Critical Kills 1 | . . 1 Critical Parts Destroyed . | . . . Melee Attacks 38 | . 2 36 Impact 34 | . . 34 Slashing . | . . . Piercing . | . . . Sneak Attacks 3 | . . 3 Combat Hostiles . | . . . Follow-up Attacks . | . . . Damage Inflicted 2817 | 57 818 1942 Guns 727 | 57 509 161 Cannons 280 | . . 280 Explosions 1035 | . 305 730 Melee 771 | . . 771 Ramming 4 | . 4 . Kinetic 672 | 33 408 231 Thermal 335 | 24 101 210 Explosive 1035 | . 305 730 Electromagnetic . | . . . Impact 771 | . . 771 Slashing . | . . . Piercing . | . . . Highest Corruption . | . . . Average Corruption . | . . . Corruption Purged . | . . . Overload Shots . | . . . Overflow Damage 171 | . 2 169 Projectiles . | . . . Explosions 3 | . 2 1 Melee 168 | . . 168 Knockbacks 8 | . . 8 Impact 5 | . . 5 Kinetic 3 | . . 3 Secondary . | . . . Self-Inflicted Damage 155 | . 88 67 Shots 4 | . 1 3 Rammed 1 | . 1 . Targets Rammed 1 | . 1 . Kicked . | . . . Crushed . | . . . Highest Temperature 288 | 45 20 288 Average Temperature 58 | 27 8 71 Received Heat Transfer 910 | 18 330 562 Siege Activations . | . . . Robots Corrupted . | . . . Combat Hostiles . | . . . Parts Fried 5 | . . 5 Impact Corruptions 11 | . . 11 Robots Melted . | . . . Combat Hostiles . | . . . Parts Melted . | . . . Heat Transferred 777 | 74 296 407 Parts Sabotaged . | . . . Parts Stolen . | . . . Parts Stripped . | . . . Power Chain Reactions . | . . . Missiles Intercepted . | . . . Alert | -11 -10 -9 ------- Run | Scr Mat Mat Peak Influence 367 | 20 272 367 Initial 60 | . 13 60 Average 139 | 5 103 184 Maximum Alert Level 1 | . 1 1 Low Security (%) 74 | 100 90 58 Level 1 25 | . 9 41 Level 2 . | . . . Level 3 . | . . . Level 4 . | . . . Level 5 . | . . . High Security . | . . . Max Security . | . . . Squads Dispatched 7 | . 2 5 Investigation 3 | . 1 2 Extermination . | . . . Reinforcement 4 | . 1 3 Assault . | . . . Garrison . | . . . Intercept . | . . . Construction Impeded 1 | . . 1 Haulers Reinforced . | . . . Stealth | -11 -10 -9 --------- Run | Scr Mat Mat Distress Signals 5 | . 3 2 Communications Jammed . | . . . Distress Signals . | . . . Times Spotted 58 | 1 20 37 Peak Tracking Total 7 | 1 7 6 Tactical Retreats 1 | . 1 . Traps | -11 -10 -9 ------- Run | Scr Mat Mat Traps Triggered 2 | . 1 1 Indirectly . | . . . Trap Hack Attempts . | . . . Triggered . | . . . Disarmed . | . . . Reprogrammed . | . . . Reused . | . . . Traps Extracted . | . . . Installed . | . . . Triggered . | . . . Machines | -11 -10 -9 ---------- Run | Scr Mat Mat Machines Disabled 4 | . 2 2 Max in Single Turn 1 | . 1 1 Machines Sabotaged . | . . . Garrisons Compromised . | . . . Overloaded Fab Kills . | . . . Fab Network Shutdowns . | . . . Hacking | -11 -10 -9 --------- Run | Scr Mat Mat Machines Accessed 3 | . 2 1 Terminals 1 | . . 1 Fabricators . | . . . Repair Stations 1 | . 1 . Recycling Units 1 | . 1 . Scanalyzers . | . . . Garrison Access . | . . . Total Hacks 11 | . 8 3 Successful 7 | . 6 1 Failed 4 | . 2 2 Catastrophic 1 | . . 1 Database Lockouts . | . . . Manual 1 | . 1 . Terminals 3 | . . 3 Fabricators . | . . . Repair Stations 2 | . 2 . Recycling Units 6 | . 6 . Scanalyzers . | . . . Garrison Access . | . . . Terminal Hacks 1 | . . 1 Record 1 | . . 1 Fabricator Hacks . | . . . Repair Station Hacks 2 | . 2 . Scan Component 1 | . 1 . Repair 1 | . 1 . Recycling Unit Hacks 4 | . 4 . Recycle Component 1 | . 1 . Process 1 | . 1 . Report Inventory 1 | . 1 . Retrieve Matter 1 | . 1 . Scanalyzer . | . . . Garrison Access Hacks . | . . . Unauthorized Hacks . | . . . Terminals . | . . . Fabricators . | . . . Repair Stations . | . . . Recycling Units . | . . . Scanalyzers . | . . . Garrison Access . | . . . Data Cores Recovered . | . . . Used . | . . . Hacking Detections 2 | . 1 1 Full Trace Events 1 | . . 1 Feedback Events . | . . . Feedback Blocked . | . . . Robot Schematics Acquired . | . . . Robots Built . | . . . Matter . | . . . Time . | . . . Total Robot Build Rating . | . . . Part Schematics Acquired . | . . . Parts Built . | . . . Matter . | . . . Time . | . . . Total Part Build Rating . | . . . Parts Repaired 1 | . 1 . Time 26 | . 26 . Parts Recycled 1 | . 1 . Recycled Matter 12 | . 12 . Retrieved Matter 12 | . 12 . Retrieved Components . | . . . Parts Scanalyzed . | . . . Part Schematics Acquired . | . . . Parts Damaged . | . . . Bothacking | -11 -10 -9 ------------ Run | Scr Mat Mat Used RIF Installer . | . . . Robots Hacked 1 | . . 1 Non-combat 1 | . . 1 Combat . | . . . Robot Hacks Applied 2 | . . 2 parse_system 1 | . . 1 find_recycling 1 | . . 1 Relay Couplers Released . | . . . Robots Rewired . | . . . Allies Hacked . | . . . Hacks Repelled . | . . . Allies | -11 -10 -9 -------- Run | Scr Mat Mat Total Allies . | . . . Largest Group . | . . . Highest-Rated Group . | . . . Highest-Rated Ally . | . . . Total Orders . | . . . Ally Attacks . | . . . Total Damage . | . . . Kills . | . . . Allies Corrupted . | . . . Allies Melted . | . . . Intel | -11 -10 -9 ------- Run | Scr Mat Mat Robot Analysis Total . | . . . Derelict Logs Recovered . | . . . Drone Launches . | . . . Drone Recoveries . | . . . Exploration | -11 -10 -9 ------------- Run | Scr Mat Mat Turns Passed 1719 | 109 709 901 Spaces Moved 947 | 98 407 442 Core 53 | 20 . 33 Treads . | . . . Legs 500 | . 369 131 Wheels 84 | 78 6 . Hover 288 | . 10 278 Flight 22 | . 22 . Fastest Speed 37 | 50 37 112 Average Speed 125 | 73 116 144 Slowest Speed 450 | 80 150 450 Overloaded Moves . | . . . Propulsion Burnouts . | . . . Robots Hopped . | . . . Cave-ins Triggered . | . . . Exploration Rate (%) 29 | 5 55 28 Regions Visited 2 Branch Regions . Pre-discovered Areas . | . . . Known Exits Taken . | . . . Unknown Exits Taken 2 | 1 1 . Scrap Searched . | . . . Spaces Dug . | . . . Terrain Destroyed 67 | . 25 42 Melee . | . . . Projectile . | . . . AOE 67 | . 25 42 Terrain Rammed . | . . . Walls Destroyed . | . . . Machines Disabled . | . . . Actions | -11 -10 -9 --------- Run | Scr Mat Mat Total 1261 | 126 552 583 Wait 8 | 5 1 2 Move 945 | 97 406 442 Hop . | . . . Pick Up 54 | 9 28 17 Fast Attach 5 | 2 2 1 Attach 27 | 5 12 10 Detach 6 | 1 2 3 Swap 48 | 1 23 24 Drop 37 | 2 22 13 Fire 92 | 4 53 35 Melee 38 | . 2 36 Ram . | . . . Kick 1 | . 1 . Crush . | . . . Escape Stasis . | . . . Rewire . | . . . Trap . | . . . Miscellaneous . | . . . Route ------- -11/Scrapyard -10/Materials (discovered 2 exits: *Mat x2) -9/Materials (discovered 1 exit: [*Min]) History --------- Turn | Location | Event 2 | -11/Scrapyard | Met Revision 17 65 | -11/Scrapyard | Discovered new exit (range 8) 110 | -11/Scrapyard | Entered Materials 237 | -10/Materials | Repaired Ion Engine? 337 | -10/Materials | Build established: Mutant 468 | -10/Materials | Discovered new exit (range 11) 504 | -10/Materials | Core integrity fell below 50% 688 | -10/Materials | Discovered new exit (range 13) 705 | -10/Materials | Build established: Scavenger-Mutant 819 | -10/Materials | Entered another Materials area 819 | -9/Materials | Evolved 2 slots: Propulsion x1, Utility x1 1103 | -9/Materials | Build established: Mutant 1492 | -9/Materials | Discovered new exit (range 13) 1648 | -9/Materials | Core integrity fell below 50% 1681 | -9/Materials | Core integrity fell below 20% 1720 | -9/Materials | Destroyed by G-34 Mercenary with Small Laser Last Messages --------------- Lgt. Assault Rifle fried. Flight Unit fried. K-01 Serf collects debris. R-06 Scavenger collects Flight Unit. K-01 Serf collects debris. G-34 Mercenary destroyed. W-16 Scout sends out distress signal. K-01 Serf collects debris. Acquired Aluminum Leg. K-01 Serf destroyed. Acquired Aluminum Leg. K-01 Serf collects debris. Sneak attack on U-05 Engineer. Destroyed Wheel. Destroyed Welding Torch. U-05 Engineer system corrupted by crushing effect. U-05 Engineer knocked back. U-05 Engineer system terminally corrupted. Lgt. Ion Engine fried. [Achievement: First Step to Greatness] Map ----- +----------------------------------------------------+ | ?????????????????????????????????????????????????? | | ?????????????????????????????????????????????????? | | ?????????????????????????????????????????????????? | | ?????????????????????????????????????????????????? | | ?????????????????????????????????????????????????? | | ?????????????????????????????????????????????????? | | ?????????????????????????????????????????????????? | | ?????????????????????????????????????????????????? | | ?????????????????????????????????????????????????? | | ?????????????????????????????????????????????????? | | ?????????????????????????????????????????????????? | | ?????????????????????????#+##????????????????????? | | ????????????????????????? +????????????????????? | | ????????????????????????# #????????????????????? | | ???????????????????????? t????????????????????? | | ????????????????????????# #????????????????????? | | ????????????????????????# #????????????????????? | | ???????????????????????## Y###??????????????????? | | ??????????????????????? ???????????????????? | | ???????????????????????# #???????????????????? | | ???????????????????????# #???????????????????? | | ???????????????????????# #???????????????????? | | ???????????????????????# #???????????????????? | | ???????????????????????# #???????????????????? | | ???????????#########???# [ #???????????????????? | | ???????????#""!"!""#???# @%! #? ?????????????????? | | ????" ????# "!"!" #???# = #?"?????????????????? | | ????" ##### #####!%* # ??????????????????? | | """ % % = # ??????????????????? | | < o +???????????????????? | | % #???????????????????? | | ?# # # u #???????????????????? | | ??# ######### % #???????????????????? | | ??#^ ^ ^ g #???????????????????? | | ? + g ^ #???????????????????? | | ??#^ T ^ """ """ %"" #???????????????????? | | ??# """ """ """ #???????????????????? | | ??# """% " % % #???????????????????? | | ??# % w#???????????????????? | | ??+ % + "?????????????????? | | ???#### % #???????????????????? | | ??????# ### % #???????????????????? | | ??????# #?##+##########???????????????????? | | ??????###### # ??????????????????????? | | ???????????# # | #?????????????????????? | | ???????????# # #?????????????????????? | | ##########?# # """ """ +?????????????????????? | | # #?# # """ """ #???????#?????????????? | | # #?# # """ """ #?????? #?????????????? | | # """ #?# # ? #?????? #?????????????? | +----------------------------------------------------+ Best States ------------- Heat Dissipation 39 Energy Generation 14 Energy Capacity 250 Matter Stores 450 Matter Capacity 450 Sight Range 16 Terrain Scan Density 10 Armor Coverage 450 Power Shielding 33 Evasion (%) 62 Targeting Accuracy 5 Item Schematics ----------------- None Robot Schematics ------------------ None Fabricated ------------ Nothing Alien Tech Used ----------------- None Achievements -------------- Crack Shot First Step to Greatness Loot Pinata One Hack Too Far Part-time Mechanic Storm Trooper Uninvited Guest Challenges ------------ None Game ------ Seed MyomerInsulationMallet Manual? 0 Play Time 01:05:13 Cumulative 2.1 hours Start 2020.09.16 @ 18:30:52 End 2020.09.16 @ 20:55:31 Sessions 1 Manual Loads 0 Difficulty Rogue Special Mode None Game No. 1 Rogue 1 Adventurer 0 Explorer 0 Win Type - Total 0 Types 0/0/0/0/0/0/0/0/0 Lore% 0 Gallery% 2 Achievement% 2 Wizard Run 0 Options --------- ASCII 0 Keyboard 0 Movement Mouse Keybinds 0 Fullscreen 1 Font 18/TerminusBold Map View 76x50 Tactical HUD 0 Map Filters NONE Filters NONE Steam 1 RUN: 94a31e56-50c2-417f-b201-4efe49ef246c